fUSD/lending_fUSD_20260607
["ID","MTS","AMOUNT","RATE_DAILY","PERIOD"]
[424405293,1780842502000,-546.73151603,0.00013653,2]
[424405292,1780842502000,-678.0,0.00013603,5]
[424405290,1780842502000,-158.0,0.000136,2]
[424405291,1780842502000,-150.0,0.00013603,2]
[424405289,1780842502000,-10000.0,0.00013599,2]
[424405288,1780842502000,-997.9130339,0.00013561,2]
[424405286,1780842502000,-304.030033,0.00013559,2]
[424405285,1780842502000,-1500.0,0.00013538,2]
[424405284,1780842502000,-12090.07391986,0.00013533,2]
[424405283,1780842502000,-500.0,0.00013498,2]
[424405280,1780842502000,-150.0,0.00013488,2]
[424405278,1780842502000,-158.73968764,0.00013488,2]
[424405282,1780842502000,-1500.0,0.00013498,2]
[424405279,1780842502000,-150.0,0.00013488,2]
[424405277,1780842502000,-4044.40967693,0.00013459,2]
[424405296,1780842502000,-500.0,0.00013698,2]
[424405287,1780842502000,-3837.10847988,0.0001356,2]
[424405281,1780842502000,-150.0,0.00013488,2]
[424405299,1780842502000,-500.0,0.00013698,2]
[424405300,1780842502000,-519.63,0.00013698,2]
[424405298,1780842502000,-500.0,0.00013698,2]
[424405320,1780842502000,-500.0,0.00013698,2]
[424405319,1780842502000,-506.2722858,0.00013698,2]
[424405318,1780842502000,-500.0,0.00013698,2]
[424405316,1780842502000,-501.56858515,0.00013698,2]
[424405317,1780842502000,-500.0,0.00013698,2]
[424405315,1780842502000,-506.08999913,0.00013698,2]
[424405314,1780842502000,-395.35540941,0.00013698,2]
[424405312,1780842502000,-500.0,0.00013698,2]
[424405311,1780842502000,-500.0,0.00013698,2]
[424405313,1780842502000,-500.0,0.00013698,2]
[424405310,1780842502000,-500.0,0.00013698,2]
[424405309,1780842502000,-500.0,0.00013698,2]
[424405302,1780842502000,-500.0,0.00013698,2]
[424405303,1780842502000,-500.0,0.00013698,2]
[424405305,1780842502000,-500.0,0.00013698,2]
[424405301,1780842502000,-500.0,0.00013698,2]
[424405304,1780842502000,-500.0,0.00013698,2]
[424405306,1780842502000,-500.0,0.00013698,2]
[424405308,1780842502000,-500.0,0.00013698,2]
[424405307,1780842502000,-500.0,0.00013698,2]
[424405336,1780842503000,-500.0,0.00013698,2]
[424405341,1780842503000,-500.0,0.00013698,2]
[424405339,1780842503000,-500.0,0.00013698,2]
[424405338,1780842503000,-500.0,0.00013698,2]
[424405337,1780842503000,-500.0,0.00013698,2]
[424405332,1780842503000,-500.0,0.00013698,2]
[424405334,1780842503000,-500.0,0.00013698,2]
[424405335,1780842503000,-500.0,0.00013698,2]
[424405333,1780842503000,-500.0,0.00013698,2]
[424405330,1780842503000,-500.0,0.00013698,2]
[424405340,1780842503000,-500.0,0.00013698,2]
[424405329,1780842503000,-500.0,0.00013698,2]
[424405331,1780842503000,-500.0,0.00013698,2]
[424405327,1780842503000,-556.45,0.00013698,2]
[424405326,1780842503000,-500.0,0.00013698,2]
[424405325,1780842503000,-500.0,0.00013698,2]
[424405324,1780842503000,-500.0,0.00013698,2]
[424405323,1780842503000,-500.0,0.00013698,2]
[424405322,1780842503000,-500.0,0.00013698,2]
[424405321,1780842503000,-500.0,0.00013698,2]
[424405328,1780842503000,-500.0,0.00013698,2]
[424405345,1780842503000,-500.0,0.00013698,2]
[424405342,1780842503000,-500.0,0.00013698,2]
[424405344,1780842503000,-500.0,0.00013698,2]
[424405343,1780842503000,-500.0,0.00013698,2]
[424405366,1780842503000,-166.66,0.00013699,2]
[424405362,1780842503000,-500.0,0.00013698,2]
[424405364,1780842503000,-156.36,0.00013699,2]
[424405360,1780842503000,-500.0,0.00013698,2]
[424405361,1780842503000,-500.0,0.00013698,2]
[424405363,1780842503000,-500.0,0.00013698,2]
[424405358,1780842503000,-181.71,0.00013698,2]
[424405359,1780842503000,-500.45399039,0.00013698,2]
[424405356,1780842503000,-611.70627847,0.00013698,2]
[424405357,1780842503000,-500.0,0.00013698,2]
[424405365,1780842503000,-200.0,0.00013699,2]
[424405351,1780842503000,-703.17,0.00013698,2]
[424405355,1780842503000,-703.17,0.00013698,2]
[424405347,1780842503000,-703.17,0.00013698,2]
[424405346,1780842503000,-500.0,0.00013698,2]
[424405348,1780842503000,-703.17,0.00013698,2]
[424405367,1780842503000,-312.72,0.00013699,2]
[424405350,1780842503000,-703.17,0.00013698,2]
[424405352,1780842503000,-703.17,0.00013698,2]
[424405353,1780842503000,-703.17,0.00013698,2]
[424405354,1780842503000,-703.17,0.00013698,2]
[424405349,1780842503000,-703.17,0.00013698,2]
[424405386,1780842504000,-1828.0,0.00013699,2]
[424405380,1780842504000,-1828.0,0.00013699,2]
[424405387,1780842504000,-1828.0,0.00013699,2]
[424405384,1780842504000,-1828.0,0.00013699,2]
[424405385,1780842504000,-1828.0,0.00013699,2]
[424405383,1780842504000,-1828.0,0.00013699,2]
[424405382,1780842504000,-1828.0,0.00013699,2]
[424405381,1780842504000,-1828.0,0.00013699,2]
[424405379,1780842504000,-1828.0,0.00013699,2]
[424405378,1780842504000,-1828.0,0.00013699,2]
[424405373,1780842504000,-1828.0,0.00013699,2]
[424405377,1780842504000,-1828.0,0.00013699,2]
[424405375,1780842504000,-1828.0,0.00013699,2]
[424405374,1780842504000,-1828.0,0.00013699,2]
[424405372,1780842504000,-1828.0,0.00013699,2]
[424405370,1780842504000,-1828.0,0.00013699,2]
[424405371,1780842504000,-1828.0,0.00013699,2]
[424405369,1780842504000,-1828.0,0.00013699,2]
[424405368,1780842504000,-2500.0,0.00013699,2]
[424405389,1780842504000,-1828.0,0.00013699,2]
[424405376,1780842504000,-1828.0,0.00013699,2]
[424405388,1780842504000,-1828.0,0.00013699,2]
[424405390,1780842504000,-1828.0,0.00013699,2]
[424405392,1780842504000,-1846.53736242,0.00013699,2]
[424405411,1780842504000,-500.0,0.00013699,2]
[424405412,1780842504000,-500.0,0.00013699,2]
[424405410,1780842504000,-446.68027817,0.00013699,2]
[424405409,1780842504000,-500.0,0.00013699,2]
[424405408,1780842504000,-500.0,0.00013699,2]
[424405407,1780842504000,-500.0,0.00013699,2]
[424405405,1780842504000,-500.0,0.00013699,2]
[424405406,1780842504000,-500.0,0.00013699,2]
[424405404,1780842504000,-500.0,0.00013699,2]
[424405402,1780842504000,-500.0,0.00013699,2]
[424405413,1780842504000,-500.0,0.00013699,2]
[424405400,1780842504000,-500.0,0.00013699,2]
[424405398,1780842504000,-500.0,0.00013699,2]
[424405401,1780842504000,-500.0,0.00013699,2]
[424405399,1780842504000,-500.0,0.00013699,2]
[424405397,1780842504000,-500.0,0.00013699,2]
[424405395,1780842504000,-500.0,0.00013699,2]
[424405396,1780842504000,-500.0,0.00013699,2]
[424405393,1780842504000,-500.0,0.00013699,2]
[424405394,1780842504000,-500.0,0.00013699,2]
[424405391,1780842504000,-1828.0,0.00013699,2]
[424405403,1780842504000,-500.0,0.00013699,2]
[424405428,1780842505000,-3125.79162287,0.00013699,2]
[424405426,1780842505000,-3125.79162287,0.00013699,2]
[424405430,1780842505000,-3125.79162287,0.00013699,2]
[424405433,1780842505000,-3125.79162287,0.00013699,2]
[424405431,1780842505000,-3125.79162287,0.00013699,2]
[424405432,1780842505000,-3125.79162287,0.00013699,2]
[424405434,1780842505000,-3125.79162287,0.00013699,2]
[424405429,1780842505000,-3125.79162287,0.00013699,2]
[424405427,1780842505000,-3125.79162287,0.00013699,2]
[424405425,1780842505000,-3125.79162287,0.00013699,2]
[424405420,1780842505000,-500.0,0.00013699,2]
[424405423,1780842505000,-500.0,0.00013699,2]
[424405421,1780842505000,-500.0,0.00013699,2]
[424405422,1780842505000,-500.0,0.00013699,2]
[424405418,1780842505000,-500.0,0.00013699,2]
[424405419,1780842505000,-500.0,0.00013699,2]
[424405416,1780842505000,-500.0,0.00013699,2]
[424405417,1780842505000,-500.0,0.00013699,2]
[424405415,1780842505000,-500.0,0.00013699,2]
[424405414,1780842505000,-500.0,0.00013699,2]
[424405435,1780842505000,-3125.79162287,0.00013699,2]
[424405424,1780842505000,-500.0,0.00013699,2]
[424405436,1780842505000,-3125.79162287,0.00013699,2]
[424405460,1780842505000,-3125.79162287,0.00013699,2]
[424405440,1780842505000,-3125.79162287,0.00013699,2]
[424405437,1780842505000,-3125.79162287,0.00013699,2]
[424405455,1780842505000,-3125.79162287,0.00013699,2]
[424405458,1780842505000,-3125.79162287,0.00013699,2]
[424405459,1780842505000,-3125.79162287,0.00013699,2]
[424405457,1780842505000,-3125.79162287,0.00013699,2]
[424405456,1780842505000,-3125.79162287,0.00013699,2]
[424405451,1780842505000,-3125.79162287,0.00013699,2]
[424405450,1780842505000,-3125.79162287,0.00013699,2]
[424405454,1780842505000,-3125.79162287,0.00013699,2]
[424405452,1780842505000,-3125.79162287,0.00013699,2]
[424405453,1780842505000,-3125.79162287,0.00013699,2]
[424405448,1780842505000,-3125.79162287,0.00013699,2]
[424405449,1780842505000,-3125.79162287,0.00013699,2]
[424405438,1780842505000,-3125.79162287,0.00013699,2]
[424405442,1780842505000,-3125.79162287,0.00013699,2]
[424405441,1780842505000,-3125.79162287,0.00013699,2]
[424405444,1780842505000,-3125.79162287,0.00013699,2]
[424405439,1780842505000,-3125.79162287,0.00013699,2]
[424405446,1780842505000,-3125.79162287,0.00013699,2]
[424405447,1780842505000,-3125.79162287,0.00013699,2]
[424405445,1780842505000,-3125.79162287,0.00013699,2]
[424405443,1780842505000,-3125.79162287,0.00013699,2]
[424405472,1780842506000,-3125.79162287,0.00013699,2]
[424405481,1780842506000,-3125.79162285,0.00013699,2]
[424405483,1780842506000,-225.0,0.00013699,2]
[424405480,1780842506000,-3125.79162285,0.00013699,2]
[424405477,1780842506000,-3125.79162285,0.00013699,2]
[424405478,1780842506000,-3125.79162285,0.00013699,2]
[424405476,1780842506000,-3125.79162285,0.00013699,2]
[424405474,1780842506000,-3125.79162285,0.00013699,2]
[424405475,1780842506000,-3125.79162285,0.00013699,2]
[424405473,1780842506000,-3125.79162285,0.00013699,2]
[424405479,1780842506000,-3125.79162285,0.00013699,2]
[424405469,1780842506000,-3125.79162287,0.00013699,2]
[424405470,1780842506000,-3125.79162287,0.00013699,2]
[424405466,1780842506000,-3125.79162287,0.00013699,2]
[424405467,1780842506000,-3125.79162287,0.00013699,2]
[424405464,1780842506000,-3125.79162287,0.00013699,2]
[424405468,1780842506000,-3125.79162287,0.00013699,2]
[424405465,1780842506000,-3125.79162287,0.00013699,2]
[424405463,1780842506000,-3125.79162287,0.00013699,2]
[424405462,1780842506000,-3125.79162287,0.00013699,2]
[424405461,1780842506000,-3125.79162287,0.00013699,2]
[424405471,1780842506000,-3125.79162287,0.00013699,2]
[424405482,1780842506000,-3125.79162285,0.00013699,2]
[424405490,1780842506000,-4044.40967693,0.00013747,2]
[424405485,1780842506000,-150.0,0.000137,2]
[424405484,1780842506000,-159.0,0.000137,2]
[424405506,1780842506000,-474.37570936,0.00013989,2]
[424405504,1780842506000,-150.0,0.00013987,2]
[424405505,1780842506000,-12090.07391986,0.00013989,2]
[424405502,1780842506000,-150.0,0.00013949,2]
[424405503,1780842506000,-166.66,0.00013973,2]
[424405500,1780842506000,-546.73151603,0.00013902,2]
[424405497,1780842506000,-269.03816523,0.00013885,2]
[424405499,1780842506000,-997.9130339,0.00013896,2]
[424405501,1780842506000,-433.0,0.00013923,2]
[424405498,1780842506000,-234.60406718,0.00013896,2]
[424405508,1780842506000,-26549.36750231,0.0001399,2]
[424405495,1780842506000,-166.66,0.00013836,2]
[424405494,1780842506000,-150.0,0.00013834,2]
[424405493,1780842506000,-3837.10847988,0.00013783,2]
[424405491,1780842506000,-12090.07391986,0.00013761,2]
[424405492,1780842506000,-546.73151603,0.00013778,2]
[424405507,1780842506000,-703.17,0.00013989,2]
[424405488,1780842506000,-163.61,0.000137,2]
[424405489,1780842506000,-150.0,0.00013718,2]
[424405487,1780842506000,-278.14329309,0.000137,2]
[424405496,1780842506000,-166.66,0.00013853,2]
[424405486,1780842506000,-150.0,0.000137,2]
[424405509,1780842510000,513.83,0.00029863,120]
[424405510,1780842511000,513.84,0.00029863,120]
[424405511,1780842541000,2000.0,0.00030136,120]
[424405512,1780842563000,418.33,0.0003,120]
[424405551,1780842632000,-1035.0,0.0001295,2]
[424405542,1780842632000,-500.0,0.0001295,2]
[424405546,1780842632000,-500.0,0.0001295,2]
[424405544,1780842632000,-1035.0,0.0001295,2]
[424405549,1780842632000,-1035.0,0.0001295,2]
[424405548,1780842632000,-500.0,0.0001295,2]
[424405552,1780842632000,-555.11222782,0.0001295,2]
[424405567,1780842632000,-500.0,0.0001295,2]
[424405556,1780842632000,-1035.0,0.0001295,2]
[424405558,1780842632000,-1035.0,0.0001295,2]
[424405560,1780842632000,-500.0,0.0001295,2]
[424405562,1780842632000,-1035.0,0.0001295,2]
[424405563,1780842632000,-500.0,0.0001295,2]
[424405565,1780842632000,-1035.0,0.0001295,2]
[424405539,1780842632000,-1035.0,0.0001295,2]
[424405554,1780842632000,-1035.0,0.0001295,2]
[424405541,1780842632000,-1035.0,0.0001295,2]
[424405529,1780842632000,-140.2691477,0.0001285,2]
[424405547,1780842632000,-1035.0,0.0001295,2]
[424405524,1780842632000,-205.423467,0.00011973,2]
[424405525,1780842632000,-250.0,0.00012061,2]
[424405527,1780842632000,-362.529,0.0001275,2]
[424405537,1780842632000,-1035.0,0.0001295,2]
[424405569,1780842632000,-1035.0,0.0001295,2]
[424405526,1780842632000,-189.8791807,0.0001215,2]
[424405528,1780842632000,-1859.7308523,0.0001285,2]
[424405543,1780842632000,-500.0,0.0001295,2]
[424405536,1780842632000,-1035.0,0.0001295,2]
[424405535,1780842632000,-1035.0,0.0001295,2]
[424405534,1780842632000,-1035.0,0.0001295,2]
[424405532,1780842632000,-3148.8167,0.00012891,2]
[424405533,1780842632000,-150.0,0.00012949,2]
[424405531,1780842632000,-2500.0,0.00012882,2]
[424405538,1780842632000,-1035.0,0.0001295,2]
[424405540,1780842632000,-1035.0,0.0001295,2]
[424405530,1780842632000,-215.83393831,0.0001285,2]
[424405571,1780842632000,-500.0,0.0001295,2]
[424405550,1780842632000,-500.0,0.0001295,2]
[424405575,1780842632000,-500.0,0.0001295,2]
[424405598,1780842632000,-150.0,0.0001295,2]
[424405591,1780842632000,-1035.0,0.0001295,2]
[424405593,1780842632000,-500.0,0.0001295,2]
[424405589,1780842632000,-500.0,0.0001295,2]
[424405602,1780842632000,-150.0,0.0001295,2]
[424405603,1780842632000,-197.96496476,0.0001295,2]
[424405605,1780842632000,-500.0,0.0001295,2]
[424405601,1780842632000,-150.0,0.0001295,2]
[424405606,1780842632000,-500.0,0.0001295,2]
[424405607,1780842632000,-500.0,0.0001295,2]
[424405608,1780842632000,-500.0,0.0001295,2]
[424405610,1780842632000,-500.0,0.0001295,2]
[424405611,1780842632000,-500.0,0.0001295,2]
[424405612,1780842632000,-396.94383744,0.0001295,2]
[424405614,1780842632000,-372.48078518,0.00012982,2]
[424405573,1780842632000,-500.0,0.0001295,2]
[424405604,1780842632000,-500.0,0.0001295,2]
[424405590,1780842632000,-500.0,0.0001295,2]
[424405609,1780842632000,-500.0,0.0001295,2]
[424405595,1780842632000,-1035.0,0.0001295,2]
[424405582,1780842632000,-500.0,0.0001295,2]
[424405600,1780842632000,-150.0,0.0001295,2]
[424405586,1780842632000,-500.0,0.0001295,2]
[424405583,1780842632000,-500.0,0.0001295,2]
[424405588,1780842632000,-500.0,0.0001295,2]
[424405585,1780842632000,-1035.0,0.0001295,2]
[424405587,1780842632000,-500.0,0.0001295,2]
[424405584,1780842632000,-365.19884206,0.0001295,2]
[424405580,1780842632000,-1035.0,0.0001295,2]
[424405613,1780842632000,-500.0,0.00012982,2]
[424405577,1780842632000,-500.0,0.0001295,2]
[424405579,1780842632000,-500.0,0.0001295,2]
[424405592,1780842632000,-500.0,0.0001295,2]
[424405599,1780842632000,-150.0,0.0001295,2]
[424405596,1780842632000,-1035.0,0.0001295,2]
[424405594,1780842632000,-451.75288582,0.0001295,2]
[424405581,1780842632000,-500.0,0.0001295,2]
[424405597,1780842632000,-1053.0953843,0.0001295,2]
[424405668,1780842633000,-166.66,0.00014247,2]
[424405647,1780842633000,-1238.8738874,0.000138,2]
[424405644,1780842633000,-500.0,0.00013698,2]
[424405649,1780842633000,-3566.1202381,0.000138,2]
[424405645,1780842633000,-500.0,0.00013698,2]
[424405640,1780842633000,-500.0,0.00013698,2]
[424405646,1780842633000,-713.0,0.00013699,5]
[424405650,1780842633000,-1000.0,0.00013869,2]
[424405648,1780842633000,-12553.6824453,0.000138,2]
[424405652,1780842633000,-2318.45740987,0.00014,2]
[424405654,1780842633000,-350.0,0.00014,3]
[424405655,1780842633000,-500.0,0.00014006,2]
[424405653,1780842633000,-250.0,0.00014,2]
[424405656,1780842633000,-546.73151603,0.00014027,2]
[424405661,1780842633000,-221.69941,0.00014156,2]
[424405643,1780842633000,-500.0,0.00013698,2]
[424405660,1780842633000,-546.73151603,0.00014152,2]
[424405659,1780842633000,-166.66,0.0001411,2]
[424405658,1780842633000,-150.0,0.00014064,2]
[424405663,1780842633000,-200.0,0.000142,5]
[424405664,1780842633000,-1884.0,0.00014217,2]
[424405665,1780842633000,-997.9130339,0.0001423,2]
[424405666,1780842633000,-239.01853808,0.00014235,2]
[424405667,1780842633000,-150.0,0.00014237,2]
[424405657,1780842633000,-255.0,0.0001405,2]
[424405662,1780842633000,-150.0,0.00014179,2]
[424405625,1780842633000,-333.15452702,0.0001319,2]
[424405641,1780842633000,-500.0,0.00013698,2]
[424405669,1780842633000,-350.0,0.00014262,2]
[424405617,1780842633000,-371.68639575,0.00012982,2]
[424405615,1780842633000,-4018.14360044,0.00012982,2]
[424405616,1780842633000,-305.65688927,0.00012982,2]
[424405618,1780842633000,-500.0,0.0001299,2]
[424405623,1780842633000,-500.0,0.0001299,2]
[424405619,1780842633000,-500.0,0.0001299,2]
[424405622,1780842633000,-500.0,0.0001299,2]
[424405621,1780842633000,-500.0,0.0001299,2]
[424405620,1780842633000,-500.0,0.0001299,2]
[424405624,1780842633000,-250.0,0.0001317,2]
[424405626,1780842633000,-500.0,0.00013698,2]
[424405651,1780842633000,-14270.34142765,0.0001399,2]
[424405628,1780842633000,-457.12873569,0.00013698,2]
[424405636,1780842633000,-500.0,0.00013698,2]
[424405629,1780842633000,-500.0,0.00013698,2]
[424405639,1780842633000,-500.0,0.00013698,2]
[424405638,1780842633000,-500.0,0.00013698,2]
[424405627,1780842633000,-500.0,0.00013698,2]
[424405630,1780842633000,-500.0,0.00013698,2]
[424405632,1780842633000,-500.0,0.00013698,2]
[424405635,1780842633000,-500.0,0.00013698,2]
[424405631,1780842633000,-500.0,0.00013698,2]
[424405633,1780842633000,-500.0,0.00013698,2]
[424405634,1780842633000,-500.0,0.00013698,2]
[424405642,1780842633000,-500.0,0.00013698,2]
[424405637,1780842633000,-500.0,0.00013698,2]
[424405671,1780842633000,-181.26,0.0001428,2]
[424405701,1780842633000,-358.9539163,0.00014708,2]
[424405675,1780842633000,-166.66,0.00014384,2]
[424405705,1780842633000,-1000.0,0.00014708,2]
[424405704,1780842633000,-1000.0,0.00014708,2]
[424405707,1780842633000,-1000.0,0.00014708,2]
[424405703,1780842633000,-1000.0,0.00014708,2]
[424405708,1780842633000,-1000.0,0.00014708,2]
[424405709,1780842633000,-1000.0,0.00014708,2]
[424405711,1780842633000,-1000.0,0.00014708,2]
[424405712,1780842633000,-1000.0,0.00014708,2]
[424405715,1780842633000,-1000.0,0.00014708,2]
[424405716,1780842633000,-1000.0,0.00014708,2]
[424405713,1780842633000,-1000.0,0.00014708,2]
[424405714,1780842633000,-1000.0,0.00014708,2]
[424405710,1780842633000,-1000.0,0.00014708,2]
[424405717,1780842633000,-609.2039163,0.00014708,2]
[424405719,1780842633000,-1000.0,0.00014708,2]
[424405721,1780842633000,-1000.0,0.00014708,2]
[424405720,1780842633000,-1000.0,0.00014708,2]
[424405718,1780842633000,-390.7960837,0.00014708,2]
[424405728,1780842633000,-1000.0,0.00014708,2]
[424405726,1780842633000,-1000.0,0.00014708,2]
[424405676,1780842633000,-3700.0,0.000144,5]
[424405724,1780842633000,-1000.0,0.00014708,2]
[424405722,1780842633000,-1000.0,0.00014708,2]
[424405725,1780842633000,-1000.0,0.00014708,2]
[424405723,1780842633000,-1000.0,0.00014708,2]
[424405706,1780842633000,-1000.0,0.00014708,2]
[424405702,1780842633000,-641.0460837,0.00014708,2]
[424405727,1780842633000,-1000.0,0.00014708,2]
[424405695,1780842633000,-150.0,0.0001464,2]
[424405700,1780842633000,-1000.0,0.00014708,2]
[424405670,1780842633000,-546.73151603,0.00014276,2]
[424405673,1780842633000,-400.0,0.000143,5]
[424405674,1780842633000,-350.0,0.00014383,2]
[424405682,1780842633000,-150.0,0.00014487,2]
[424405677,1780842633000,-600.0,0.000144,5]
[424405688,1780842633000,-166.66,0.0001454,2]
[424405685,1780842633000,-800.0,0.000145,5]
[424405686,1780842633000,-546.73151603,0.00014525,2]
[424405687,1780842633000,-150.0,0.00014525,2]
[424405678,1780842633000,-546.73151603,0.00014401,2]
[424405684,1780842633000,-3331.72598628,0.000145,5]
[424405679,1780842633000,-150.0,0.0001441,2]
[424405672,1780842633000,-150.0,0.00014295,2]
[424405683,1780842633000,-1368.27401372,0.000145,5]
[424405681,1780842633000,-350.0,0.00014433,2]
[424405689,1780842633000,-997.9130339,0.00014565,2]
[424405698,1780842633000,-200.0,0.000147,5]
[424405690,1780842633000,-350.0,0.00014595,2]
[424405699,1780842633000,-1000.0,0.00014708,2]
[424405691,1780842633000,-65.85450722,0.000146,5]
[424405692,1780842633000,-834.14549278,0.000146,5]
[424405693,1780842633000,-1000.0,0.000146,5]
[424405694,1780842633000,-350.0,0.00014617,2]
[424405697,1780842633000,-900.0,0.000147,5]
[424405696,1780842633000,-546.73151603,0.0001465,2]
[424405680,1780842633000,-500.0,0.00014411,2]
[424405729,1780842634000,-1000.0,0.00014708,2]
[424405731,1780842634000,-1000.0,0.00014708,2]
[424405734,1780842634000,-232.10540847,0.00014708,2]
[424405732,1780842634000,-1000.0,0.00014708,2]
[424405733,1780842634000,-1000.0,0.00014708,2]
[424405730,1780842634000,-1000.0,0.00014708,2]
[424405828,1780842638000,-2047.07352394,0.00014896,2]
[424405827,1780842638000,-2047.07352394,0.00014895,2]
[424405826,1780842638000,-2047.07352394,0.00014894,2]
[424405813,1780842638000,-900.0,0.000148,5]
[424405823,1780842638000,-2047.07352394,0.0001489,2]
[424405830,1780842638000,-546.73151603,0.00014899,2]
[424405815,1780842638000,-200.0,0.000148,5]
[424405831,1780842638000,-2047.07352394,0.00014899,2]
[424405833,1780842638000,-159.0,0.000149,2]
[424405819,1780842638000,-150.0,0.00014871,2]
[424405817,1780842638000,-350.0,0.00014825,2]
[424405824,1780842638000,-2047.07352394,0.00014891,2]
[424405821,1780842638000,-200.0,0.0001488,2]
[424405822,1780842638000,-2047.07352396,0.00014889,2]
[424405825,1780842638000,-2047.07352394,0.00014893,2]
[424405832,1780842638000,-500.0,0.00014899,2]
[424405796,1780842638000,-1000.0,0.00014708,2]
[424405829,1780842638000,-2047.07352394,0.00014898,2]
[424405798,1780842638000,-1000.0,0.00014708,2]
[424405775,1780842638000,-500.0,0.00013498,2]
[424405836,1780842638000,-158.0,0.000149,2]
[424405780,1780842638000,-500.0,0.00013772,2]
[424405778,1780842638000,-500.0,0.00013698,2]
[424405782,1780842638000,-500.0,0.00014046,2]
[424405769,1780842638000,-500.0,0.0001295,2]
[424405786,1780842638000,-767.89459153,0.00014708,2]
[424405773,1780842638000,-150.0,0.00013376,2]
[424405784,1780842638000,-500.0,0.0001432,2]
[424405771,1780842638000,-500.0,0.00013224,2]
[424405788,1780842638000,-1000.0,0.00014708,2]
[424405801,1780842638000,-1000.0,0.00014708,2]
[424405805,1780842638000,-1000.0,0.00014708,2]
[424405803,1780842638000,-1000.0,0.00014708,2]
[424405790,1780842638000,-1000.0,0.00014708,2]
[424405807,1780842638000,-160.92,0.00014708,2]
[424405811,1780842638000,-546.73151603,0.00014774,2]
[424405792,1780842638000,-1000.0,0.00014708,2]
[424405809,1780842638000,-150.0,0.00014756,2]
[424405800,1780842638000,-1000.0,0.00014708,2]
[424405843,1780842638000,-200.0,0.000149,5]
[424405794,1780842638000,-1000.0,0.00014708,2]
[424405834,1780842638000,-159.0,0.000149,2]
[424405870,1780842638000,-151.0,0.00014997,2]
[424405866,1780842638000,-1820.96244057,0.0001499,2]
[424405869,1780842638000,-151.0,0.00014997,2]
[424405868,1780842638000,-151.0,0.00014997,2]
[424405872,1780842638000,-500.0,0.00014999,2]
[424405865,1780842638000,-1820.96244057,0.0001499,2]
[424405871,1780842638000,-500.0,0.00014999,2]
[424405863,1780842638000,-479.478431,0.00014989,10]
[424405873,1780842638000,-500.0,0.00014999,2]
[424405874,1780842638000,-500.0,0.00014999,2]
[424405875,1780842638000,-500.0,0.00014999,2]
[424405876,1780842638000,-703.17,0.00014999,2]
[424405879,1780842638000,-703.17,0.00014999,2]
[424405878,1780842638000,-703.17,0.00014999,2]
[424405881,1780842638000,-703.17,0.00014999,2]
[424405880,1780842638000,-703.17,0.00014999,2]
[424405835,1780842638000,-997.9130339,0.000149,2]
[424405867,1780842638000,-1820.96244057,0.0001499,2]
[424405862,1780842638000,-120967.63391002,0.00014989,2]
[424405877,1780842638000,-703.17,0.00014999,2]
[424405850,1780842638000,-256.65450087,0.00014986,2]
[424405848,1780842638000,-151.0,0.00014986,2]
[424405837,1780842638000,-900.0,0.000149,5]
[424405844,1780842638000,-500.0,0.00014904,2]
[424405838,1780842638000,-7027.45653192,0.000149,2]
[424405841,1780842638000,-2949.97775766,0.000149,2]
[424405845,1780842638000,-150.0,0.00014985,2]
[424405842,1780842638000,-2047.07352394,0.000149,2]